[Event "Titled Tuesday Blitz June 27 Early 2023"]
[White "ElDivis"]
[Black "Lorparizangeneh, Shahin"]
[BlackFideId "12521604"]
[WhiteElo "2556"]
[BlackElo "2739"]
[Result "0-1"]
[Round "2"]
[TimeControl "180+2"]
[Date "2023.06.27"]
[WhiteClock "0:00:02"]
[BlackClock "0:00:22"]
[Board "84"]

1. d4 {[%clk 0:03:00]}  Nf6 {[%clk 0:03:00]} 2. c4 {[%clk 0:03:00]}  g6 {[%clk 0:03:00]} 3. Nc3 {[%clk 0:02:58]}  d5 {[%clk 0:03:01]} 4. Nf3 {[%clk 0:02:58]}  Bg7 {[%clk 0:02:59]} 5. Bg5 {[%clk 0:02:58]}  Ne4 {[%clk 0:02:59]} 6. Bf4 {[%clk 0:02:56]}  Nxc3 {[%clk 0:02:57]} 7. bxc3 {[%clk 0:02:57]}  c5 {[%clk 0:02:56]} 8. e3 {[%clk 0:02:57]}  O-O {[%clk 0:02:56]} 9. cxd5 {[%clk 0:02:56]}  Qxd5 {[%clk 0:02:55]} 10. Be2 {[%clk 0:02:50]}  cxd4 {[%clk 0:02:46]} 11. cxd4 {[%clk 0:02:51]}  Qa5+ {[%clk 0:02:46]} 12. Qd2 {[%clk 0:02:51]}  Nc6 {[%clk 0:02:46]} 13. h4 {[%clk 0:02:48]}  Rd8 {[%clk 0:02:44]} 14. Qxa5 {[%clk 0:02:43]}  Nxa5 {[%clk 0:02:43]} 15. h5 {[%clk 0:02:44]}  b6 {[%clk 0:02:34]} 16. O-O {[%clk 0:02:16]}  Bb7 {[%clk 0:02:30]} 17. Rfc1 {[%clk 0:02:15]}  Rac8 {[%clk 0:02:27]} 18. Ne5 {[%clk 0:02:09]}  g5 {[%clk 0:02:13]} 19. Bxg5 {[%clk 0:01:22]}  f6 {[%clk 0:02:12]} 20. h6 {[%clk 0:01:22]}  Bf8 {[%clk 0:02:02]} 21. Bg4 {[%clk 0:01:10]}  Rxc1+ {[%clk 0:01:58]} 22. Rxc1 {[%clk 0:01:11]}  fxe5 {[%clk 0:01:57]} 23. Be6+ {[%clk 0:01:07]}  Kh8 {[%clk 0:01:56]} 24. dxe5 {[%clk 0:01:06]}  Nc6 {[%clk 0:01:29]} 25. f4 {[%clk 0:00:49]}  Rd2 {[%clk 0:01:24]} 26. Bh3 {[%clk 0:00:10]}  b5 {[%clk 0:01:15]} 27. g3 {[%clk 0:00:08]}  b4 {[%clk 0:01:05]} 28. Bg2 {[%clk 0:00:08]}  Rxg2+ {[%clk 0:01:04]} 29. Kxg2 {[%clk 0:00:08]}  Nxe5+ {[%clk 0:01:05]} 30. Kh3 {[%clk 0:00:08]}  Nc6 {[%clk 0:01:03]} 31. Rd1 {[%clk 0:00:07]}  Kg8 {[%clk 0:01:03]} 32. g4 {[%clk 0:00:07]}  Ba6 {[%clk 0:00:52]} 33. f5 {[%clk 0:00:07]}  Bc4 {[%clk 0:00:50]} 34. Rc1 {[%clk 0:00:07]}  Bd5 {[%clk 0:00:46]} 35. Rc5 {[%clk 0:00:07]}  Be4 {[%clk 0:00:45]} 36. Rc4 {[%clk 0:00:07]}  Bd5 {[%clk 0:00:41]} 37. Rc5 {[%clk 0:00:08]}  e6 {[%clk 0:00:41]} 38. Rb5 {[%clk 0:00:08]}  Bxa2 {[%clk 0:00:39]} 39. fxe6 {[%clk 0:00:06]}  Bxe6 {[%clk 0:00:40]} 40. e4 {[%clk 0:00:05]}  b3 {[%clk 0:00:40]} 41. Bc1 {[%clk 0:00:05]}  Bc4 {[%clk 0:00:34]} 42. Rb7 {[%clk 0:00:05]}  Nd4 {[%clk 0:00:32]} 43. Rc7 {[%clk 0:00:04]}  Bf7 {[%clk 0:00:32]} 44. Rc8 {[%clk 0:00:04]}  Be6 {[%clk 0:00:29]} 45. Re8 {[%clk 0:00:04]}  Kf7 {[%clk 0:00:28]} 46. Ra8 {[%clk 0:00:04]}  Bc5 {[%clk 0:00:23]} 47. Ba3 {[%clk 0:00:04]}  Bxa3 {[%clk 0:00:21]} 48. Rxa7+ {[%clk 0:00:04]}  Kg6 {[%clk 0:00:21]} 49. Rxa3 {[%clk 0:00:02]}  b2 {[%clk 0:00:22]} 0-1


[Site "https://www.chess.com"]

[Event "Titled Tuesday Blitz June 27 Early 2023"]
[White "Mackster23"]
[Black "Csonka, Balazs"]
[BlackFideId "742910"]
[WhiteElo "2485"]
[BlackElo "2729"]
[Result "1/2-1/2"]
[Round "2"]
[TimeControl "180+2"]
[Date "2023.06.27"]
[WhiteClock "0:00:13"]
[BlackClock "0:00:04"]
[Board "90"]

1. e4 {[%clk 0:03:00]}  e6 {[%clk 0:03:00]} 2. d4 {[%clk 0:03:00]}  d5 {[%clk 0:03:00]} 3. Nc3 {[%clk 0:03:01]}  Bb4 {[%clk 0:02:59]} 4. e5 {[%clk 0:03:02]}  c5 {[%clk 0:02:59]} 5. a3 {[%clk 0:03:02]}  Bxc3+ {[%clk 0:02:59]} 6. bxc3 {[%clk 0:03:03]}  Nc6 {[%clk 0:02:59]} 7. Qg4 {[%clk 0:02:51]}  g6 {[%clk 0:02:59]} 8. Qd1 {[%clk 0:02:44]}  Qa5 {[%clk 0:02:46]} 9. Bd2 {[%clk 0:02:42]}  Qa4 {[%clk 0:02:47]} 10. Nf3 {[%clk 0:02:38]}  c4 {[%clk 0:02:26]} 11. h4 {[%clk 0:02:30]}  h6 {[%clk 0:02:24]} 12. h5 {[%clk 0:02:15]}  g5 {[%clk 0:02:23]} 13. Ra2 {[%clk 0:02:07]}  Bd7 {[%clk 0:02:22]} 14. g3 {[%clk 0:01:49]}  O-O-O {[%clk 0:02:19]} 15. Bh3 {[%clk 0:01:48]}  f6 {[%clk 0:02:10]} 16. Qe2 {[%clk 0:01:25]}  Rh7 {[%clk 0:01:27]} 17. exf6 {[%clk 0:01:16]}  Nxf6 {[%clk 0:01:22]} 18. Ne5 {[%clk 0:01:15]}  Nxe5 {[%clk 0:01:07]} 19. Qxe5 {[%clk 0:01:16]}  Ne4 {[%clk 0:01:08]} 20. f3 {[%clk 0:01:03]}  Nxd2 {[%clk 0:01:03]} 21. Kxd2 {[%clk 0:01:04]}  Re8 {[%clk 0:00:52]} 22. Re1 {[%clk 0:01:04]}  Rf7 {[%clk 0:00:48]} 23. Re3 {[%clk 0:00:58]}  Qc6 {[%clk 0:00:43]} 24. a4 {[%clk 0:00:56]}  a5 {[%clk 0:00:39]} 25. Bg4 {[%clk 0:00:52]}  Qc7 {[%clk 0:00:30]} 26. Ra1 {[%clk 0:00:44]}  Qxe5 {[%clk 0:00:27]} 27. Rxe5 {[%clk 0:00:45]}  Kc7 {[%clk 0:00:27]} 28. Kc1 {[%clk 0:00:32]}  Ref8 {[%clk 0:00:24]} 29. Bxe6 {[%clk 0:00:21]}  Bxe6 {[%clk 0:00:24]} 30. Rxe6 {[%clk 0:00:22]}  Rxf3 {[%clk 0:00:25]} 31. Rxh6 {[%clk 0:00:22]}  Rxc3 {[%clk 0:00:20]} 32. Rh7+ {[%clk 0:00:19]}  Kc6 {[%clk 0:00:19]} 33. Rb1 {[%clk 0:00:13]}  Rf1+ {[%clk 0:00:15]} 34. Kd2 {[%clk 0:00:09]}  Rxb1 {[%clk 0:00:16]} 35. Kxc3 {[%clk 0:00:09]}  Rg1 {[%clk 0:00:17]} 36. Rh6+ {[%clk 0:00:08]}  Kc7 {[%clk 0:00:17]} 37. Rh7+ {[%clk 0:00:09]}  Kb6 {[%clk 0:00:17]} 38. Rh6+ {[%clk 0:00:09]}  Kc7 {[%clk 0:00:14]} 39. Rh7+ {[%clk 0:00:09]}  Kb8 {[%clk 0:00:09]} 40. Rd7 {[%clk 0:00:09]}  Rxg3+ {[%clk 0:00:08]} 41. Kb2 {[%clk 0:00:10]}  Rh3 {[%clk 0:00:07]} 42. Rxd5 {[%clk 0:00:10]}  Rxh5 {[%clk 0:00:05]} 43. Rxa5 {[%clk 0:00:10]}  Rh4 {[%clk 0:00:05]} 44. Rxg5 {[%clk 0:00:09]}  Rxd4 {[%clk 0:00:05]} 45. Kc3 {[%clk 0:00:10]}  Rf4 {[%clk 0:00:05]} 46. Rc5 {[%clk 0:00:10]}  Ka7 {[%clk 0:00:05]} 47. Rxc4 {[%clk 0:00:10]}  Rf6 {[%clk 0:00:05]} 48. Kb4 {[%clk 0:00:11]}  Kb6 {[%clk 0:00:05]} 49. c3 {[%clk 0:00:10]}  Rf5 {[%clk 0:00:04]} 50. Rh4 {[%clk 0:00:09]}  Rg5 {[%clk 0:00:05]} 51. Rh6+ {[%clk 0:00:09]}  Kc7 {[%clk 0:00:04]} 52. c4 {[%clk 0:00:09]}  Rf5 {[%clk 0:00:05]} 53. c5 {[%clk 0:00:08]}  Rf1 {[%clk 0:00:05]} 54. Rh7+ {[%clk 0:00:08]}  Kc6 {[%clk 0:00:05]} 55. Rh6+ {[%clk 0:00:09]}  Kc7 {[%clk 0:00:05]} 56. Rh3 {[%clk 0:00:09]}  Rb1+ {[%clk 0:00:05]} 57. Rb3 {[%clk 0:00:10]}  Rc1 {[%clk 0:00:05]} 58. Kb5 {[%clk 0:00:10]}  Rc2 {[%clk 0:00:03]} 59. a5 {[%clk 0:00:10]}  Rc1 {[%clk 0:00:04]} 60. Rb4 {[%clk 0:00:10]}  Rc2 {[%clk 0:00:04]} 61. Rg4 {[%clk 0:00:10]}  Rb2+ {[%clk 0:00:04]} 62. Rb4 {[%clk 0:00:11]}  Rc2 {[%clk 0:00:04]} 63. Ka4 {[%clk 0:00:11]}  Ra2+ {[%clk 0:00:04]} 64. Kb3 {[%clk 0:00:11]}  Rxa5 {[%clk 0:00:04]} 65. Kc4 {[%clk 0:00:12]}  Kc6 {[%clk 0:00:04]} 66. Rb6+ {[%clk 0:00:11]}  Kc7 {[%clk 0:00:04]} 67. Rb4 {[%clk 0:00:12]}  Kc6 {[%clk 0:00:03]} 68. Rb6+ {[%clk 0:00:12]}  Kc7 {[%clk 0:00:04]} 69. Rb4 {[%clk 0:00:13]} 1/2-1/2


[Site "https://www.chess.com"]

[Event "Titled Tuesday Blitz June 27 Early 2023"]
[White "Jovic, Stanoje"]
[Black "Quintiliano Pinto, Renato R."]
[WhiteFideId "905020"]
[BlackFideId "2117568"]
[WhiteElo "2472"]
[BlackElo "2727"]
[Result "0-1"]
[Round "2"]
[TimeControl "180+2"]
[Date "2023.06.27"]
[WhiteClock "0:00:00"]
[BlackClock "0:00:18"]
[Board "91"]

1. c4 {[%clk 0:03:00]}  e5 {[%clk 0:02:58]} 2. g3 {[%clk 0:03:01]}  d5 {[%clk 0:02:53]} 3. cxd5 {[%clk 0:03:00]}  Qxd5 {[%clk 0:02:53]} 4. Nf3 {[%clk 0:02:59]}  Nc6 {[%clk 0:02:52]} 5. Nc3 {[%clk 0:02:59]}  Qd8 {[%clk 0:02:52]} 6. Bg2 {[%clk 0:02:59]}  Nf6 {[%clk 0:02:51]} 7. O-O {[%clk 0:02:58]}  Bd6 {[%clk 0:02:47]} 8. d3 {[%clk 0:02:55]}  O-O {[%clk 0:02:46]} 9. Bg5 {[%clk 0:02:55]}  h6 {[%clk 0:02:46]} 10. Bxf6 {[%clk 0:02:55]}  Qxf6 {[%clk 0:02:47]} 11. Rc1 {[%clk 0:02:50]}  Bg4 {[%clk 0:02:39]} 12. h3 {[%clk 0:02:48]}  Bh5 {[%clk 0:02:36]} 13. a3 {[%clk 0:02:45]}  Rad8 {[%clk 0:02:33]} 14. b4 {[%clk 0:02:43]}  a6 {[%clk 0:02:32]} 15. Ne4 {[%clk 0:02:42]}  Qe7 {[%clk 0:02:32]} 16. Nc5 {[%clk 0:02:40]}  Bxc5 {[%clk 0:02:19]} 17. Rxc5 {[%clk 0:02:40]}  Bg6 {[%clk 0:02:05]} 18. Nh4 {[%clk 0:02:33]}  Bh7 {[%clk 0:02:05]} 19. Bxc6 {[%clk 0:02:27]}  bxc6 {[%clk 0:02:05]} 20. Qc1 {[%clk 0:02:19]}  e4 {[%clk 0:02:01]} 21. Rxc6 {[%clk 0:02:15]}  exd3 {[%clk 0:01:58]} 22. exd3 {[%clk 0:02:12]}  Bxd3 {[%clk 0:01:57]} 23. Re1 {[%clk 0:02:10]}  Qd7 {[%clk 0:01:56]} 24. Kh2 {[%clk 0:01:59]}  Rfe8 {[%clk 0:01:00]} 25. Rxe8+ {[%clk 0:01:48]}  Rxe8 {[%clk 0:00:59]} 26. Ng2 {[%clk 0:01:27]}  Re2 {[%clk 0:00:44]} 27. Rxc7 {[%clk 0:01:15]}  Qd5 {[%clk 0:00:43]} 28. Qf4 {[%clk 0:00:38]}  Be4 {[%clk 0:00:40]} 29. Ne3 {[%clk 0:00:31]}  Re1 {[%clk 0:00:36]} 30. f3 {[%clk 0:00:00]}  Bxf3 {[%clk 0:00:18]} 0-1


[Site "https://www.chess.com"]

[Event "Titled Tuesday Blitz June 27 Early 2023"]
[White "Lortkipanidze, Nodar"]
[Black "Mazurkiewicz, Michal"]
[WhiteFideId "13604058"]
[BlackFideId "1124943"]
[WhiteElo "2726"]
[BlackElo "2460"]
[Result "1-0"]
[Round "2"]
[TimeControl "180+2"]
[Date "2023.06.27"]
[WhiteClock "0:01:24"]
[BlackClock "0:00:00"]
[Board "92"]

1. e4 {[%clk 0:02:38]}  d6 {[%clk 0:02:59]} 2. d4 {[%clk 0:02:38]}  Nf6 {[%clk 0:02:57]} 3. Nc3 {[%clk 0:02:39]}  c6 {[%clk 0:02:57]} 4. h3 {[%clk 0:02:33]}  e5 {[%clk 0:02:54]} 5. Be3 {[%clk 0:02:33]}  Be7 {[%clk 0:02:53]} 6. Qd2 {[%clk 0:02:33]}  b5 {[%clk 0:02:46]} 7. a3 {[%clk 0:02:25]}  O-O {[%clk 0:02:44]} 8. g4 {[%clk 0:02:25]}  Re8 {[%clk 0:02:39]} 9. Bg2 {[%clk 0:02:25]}  exd4 {[%clk 0:02:34]} 10. Bxd4 {[%clk 0:02:24]}  d5 {[%clk 0:02:34]} 11. e5 {[%clk 0:02:18]}  Nfd7 {[%clk 0:01:53]} 12. O-O-O {[%clk 0:02:16]}  b4 {[%clk 0:01:49]} 13. axb4 {[%clk 0:02:16]}  Bxb4 {[%clk 0:01:50]} 14. f4 {[%clk 0:02:07]}  Qa5 {[%clk 0:01:28]} 15. Kb1 {[%clk 0:02:05]}  c5 {[%clk 0:01:26]} 16. Bxd5 {[%clk 0:01:57]}  cxd4 {[%clk 0:01:24]} 17. Qxd4 {[%clk 0:01:58]}  Nb6 {[%clk 0:00:53]} 18. Bxa8 {[%clk 0:01:55]}  Nxa8 {[%clk 0:00:39]} 19. Nd5 {[%clk 0:01:38]}  Nc6 {[%clk 0:00:39]} 20. Qc4 {[%clk 0:01:35]}  Bb7 {[%clk 0:00:27]} 21. Nf3 {[%clk 0:01:36]}  Nb6 {[%clk 0:00:26]} 22. Nxb6 {[%clk 0:01:36]}  Qxb6 {[%clk 0:00:26]} 23. Ng5 {[%clk 0:01:31]}  Rf8 {[%clk 0:00:07]} 24. e6 {[%clk 0:01:23]}  fxe6 {[%clk 0:00:06]} 25. Qxe6+ {[%clk 0:01:23]}  Kh8 {[%clk 0:00:04]} 26. Nf7+ {[%clk 0:01:23]}  Rxf7 {[%clk 0:00:00]} 27. Qxf7 {[%clk 0:01:24]} 1-0


[Site "https://www.chess.com"]

[Event "Titled Tuesday Blitz June 27 Early 2023"]
[White "splendidkid"]
[Black "LangesNasenhaar"]
[WhiteElo "2724"]
[BlackElo "2454"]
[Result "1-0"]
[Round "2"]
[TimeControl "180+2"]
[Date "2023.06.27"]
[WhiteClock "0:00:22"]
[BlackClock "0:00:09"]
[Board "93"]

1. d4 {[%clk 0:03:00]}  g6 {[%clk 0:02:59]} 2. c4 {[%clk 0:03:00]}  Bg7 {[%clk 0:02:59]} 3. Nf3 {[%clk 0:03:01]}  d6 {[%clk 0:02:56]} 4. Nc3 {[%clk 0:03:00]}  c5 {[%clk 0:02:56]} 5. e4 {[%clk 0:02:55]}  Nc6 {[%clk 0:02:53]} 6. Be3 {[%clk 0:02:54]}  cxd4 {[%clk 0:02:48]} 7. Nxd4 {[%clk 0:02:54]}  Nf6 {[%clk 0:02:49]} 8. Be2 {[%clk 0:02:54]}  O-O {[%clk 0:02:48]} 9. O-O {[%clk 0:02:54]}  Bd7 {[%clk 0:02:47]} 10. Rc1 {[%clk 0:02:54]}  Qa5 {[%clk 0:02:43]} 11. f3 {[%clk 0:02:53]}  Rac8 {[%clk 0:02:40]} 12. Qd2 {[%clk 0:02:53]}  Rfd8 {[%clk 0:02:36]} 13. Nxc6 {[%clk 0:02:49]}  bxc6 {[%clk 0:02:34]} 14. Rfd1 {[%clk 0:02:44]}  Qc7 {[%clk 0:02:29]} 15. b4 {[%clk 0:02:38]}  Be6 {[%clk 0:02:23]} 16. a3 {[%clk 0:02:36]}  Nd7 {[%clk 0:02:20]} 17. Na4 {[%clk 0:02:32]}  Ne5 {[%clk 0:02:15]} 18. Qc2 {[%clk 0:02:27]}  h5 {[%clk 0:02:09]} 19. h3 {[%clk 0:02:24]}  Qb8 {[%clk 0:02:05]} 20. g4 {[%clk 0:02:14]}  hxg4 {[%clk 0:02:01]} 21. hxg4 {[%clk 0:02:15]}  d5 {[%clk 0:01:55]} 22. Bd4 {[%clk 0:01:57]}  dxe4 {[%clk 0:01:24]} 23. Qxe4 {[%clk 0:01:42]}  Nxf3+ {[%clk 0:01:00]} 24. Bxf3 {[%clk 0:01:31]}  Qg3+ {[%clk 0:00:59]} 25. Bg2 {[%clk 0:01:31]}  Bxg4 {[%clk 0:00:53]} 26. Bf2 {[%clk 0:01:16]}  Qxa3 {[%clk 0:00:38]} 27. Qxg4 {[%clk 0:01:13]}  Qxa4 {[%clk 0:00:36]} 28. Bc5 {[%clk 0:00:32]}  e5 {[%clk 0:00:22]} 29. Bh3 {[%clk 0:00:27]}  Rxd1+ {[%clk 0:00:15]} 30. Qxd1 {[%clk 0:00:28]}  Qa3 {[%clk 0:00:13]} 31. Bxc8 {[%clk 0:00:24]}  Qg3+ {[%clk 0:00:13]} 32. Kf1 {[%clk 0:00:24]}  Bh6 {[%clk 0:00:12]} 33. Bf2 {[%clk 0:00:22]}  Qh3+ {[%clk 0:00:09]} 34. Bxh3 {[%clk 0:00:22]} 1-0


[Site "https://www.chess.com"]

[Event "Titled Tuesday Blitz June 27 Early 2023"]
[White "Lavrik, Dmitry"]
[Black "Garrido Outon, Alex"]
[WhiteFideId "24113190"]
[BlackFideId "24516279"]
[WhiteElo "2718"]
[BlackElo "2408"]
[Result "1-0"]
[Round "2"]
[TimeControl "180+2"]
[Date "2023.06.27"]
[WhiteClock "0:00:11"]
[BlackClock "0:00:03"]
[Board "96"]

1. c4 {[%clk 0:03:00]}  Nf6 {[%clk 0:02:59]} 2. Nf3 {[%clk 0:02:58]}  d6 {[%clk 0:02:59]} 3. g3 {[%clk 0:02:57]}  e5 {[%clk 0:02:55]} 4. d3 {[%clk 0:02:55]}  g6 {[%clk 0:02:46]} 5. Bg2 {[%clk 0:02:56]}  Bg7 {[%clk 0:02:47]} 6. Nc3 {[%clk 0:02:55]}  O-O {[%clk 0:02:47]} 7. O-O {[%clk 0:02:52]}  Re8 {[%clk 0:02:37]} 8. Bg5 {[%clk 0:02:38]}  h6 {[%clk 0:02:36]} 9. Bxf6 {[%clk 0:02:38]}  Bxf6 {[%clk 0:02:37]} 10. Qc2 {[%clk 0:02:29]}  c6 {[%clk 0:02:30]} 11. Nd2 {[%clk 0:02:23]}  Bg4 {[%clk 0:02:18]} 12. b4 {[%clk 0:02:18]}  a6 {[%clk 0:02:07]} 13. a4 {[%clk 0:02:13]}  Nd7 {[%clk 0:02:04]} 14. b5 {[%clk 0:02:13]}  axb5 {[%clk 0:02:03]} 15. axb5 {[%clk 0:02:12]}  Qc7 {[%clk 0:02:00]} 16. Rfc1 {[%clk 0:01:47]}  Bg7 {[%clk 0:01:49]} 17. Nb3 {[%clk 0:01:24]}  h5 {[%clk 0:01:45]} 18. Qd2 {[%clk 0:01:23]}  Kh7 {[%clk 0:01:38]} 19. h3 {[%clk 0:01:16]}  Bh6 {[%clk 0:01:35]} 20. e3 {[%clk 0:01:16]}  Bf5 {[%clk 0:01:27]} 21. Ne2 {[%clk 0:00:58]}  Be6 {[%clk 0:01:07]} 22. Na5 {[%clk 0:00:50]}  cxb5 {[%clk 0:00:46]} 23. cxb5 {[%clk 0:00:45]}  Qb6 {[%clk 0:00:46]} 24. Nxb7 {[%clk 0:00:46]}  Rxa1 {[%clk 0:00:45]} 25. Rxa1 {[%clk 0:00:47]}  d5 {[%clk 0:00:42]} 26. Na5 {[%clk 0:00:36]}  Qxb5 {[%clk 0:00:41]} 27. Nc3 {[%clk 0:00:36]}  Qb4 {[%clk 0:00:37]} 28. Nc6 {[%clk 0:00:32]}  Qd6 {[%clk 0:00:36]} 29. Na7 {[%clk 0:00:26]}  Nc5 {[%clk 0:00:31]} 30. Nab5 {[%clk 0:00:24]}  Qd7 {[%clk 0:00:30]} 31. Ra7 {[%clk 0:00:22]}  Qc8 {[%clk 0:00:27]} 32. Bxd5 {[%clk 0:00:20]}  Rd8 {[%clk 0:00:17]} 33. Rc7 {[%clk 0:00:18]}  Qb8 {[%clk 0:00:05]} 34. Rxc5 {[%clk 0:00:19]}  Bxd5 {[%clk 0:00:06]} 35. Nxd5 {[%clk 0:00:17]}  Bf8 {[%clk 0:00:06]} 36. Qc3 {[%clk 0:00:11]}  Bxc5 {[%clk 0:00:06]} 37. Qxc5 {[%clk 0:00:12]}  Kg7 {[%clk 0:00:05]} 38. Nbc3 {[%clk 0:00:11]}  Rc8 {[%clk 0:00:05]} 39. Qe7 {[%clk 0:00:11]}  Re8 {[%clk 0:00:03]} 40. Qf6+ {[%clk 0:00:11]}  Kh7 {[%clk 0:00:04]} 41. g4 {[%clk 0:00:10]}  hxg4 {[%clk 0:00:04]} 42. hxg4 {[%clk 0:00:11]}  Kg8 {[%clk 0:00:04]} 43. Qh4 {[%clk 0:00:11]}  Re6 {[%clk 0:00:05]} 44. g5 {[%clk 0:00:11]}  Kf8 {[%clk 0:00:03]} 45. Qh8# {[%clk 0:00:11]} 1-0


[Site "https://www.chess.com"]

[Event "Titled Tuesday Blitz June 27 Early 2023"]
[White "Dixit, Arun"]
[Black "Postny, Evgeny"]
[WhiteFideId "30937671"]
[BlackFideId "2804344"]
[WhiteElo "2406"]
[BlackElo "2716"]
[Result "0-1"]
[Round "2"]
[TimeControl "180+2"]
[Date "2023.06.27"]
[WhiteClock "0:00:05"]
[BlackClock "0:00:45"]
[Board "97"]

1. Nf3 {[%clk 0:02:56]}  Nf6 {[%clk 0:02:57]} 2. g3 {[%clk 0:02:56]}  b5 {[%clk 0:02:56]} 3. Bg2 {[%clk 0:02:51]}  Bb7 {[%clk 0:02:56]} 4. O-O {[%clk 0:02:52]}  e6 {[%clk 0:02:56]} 5. d4 {[%clk 0:02:51]}  c5 {[%clk 0:02:56]} 6. a4 {[%clk 0:02:48]}  b4 {[%clk 0:02:55]} 7. dxc5 {[%clk 0:02:48]}  Bxc5 {[%clk 0:02:54]} 8. Nbd2 {[%clk 0:02:49]}  O-O {[%clk 0:02:48]} 9. Nb3 {[%clk 0:02:48]}  Be7 {[%clk 0:02:48]} 10. Nfd4 {[%clk 0:02:43]}  Bxg2 {[%clk 0:02:48]} 11. Kxg2 {[%clk 0:02:44]}  Qc8 {[%clk 0:02:43]} 12. Bg5 {[%clk 0:02:20]}  h6 {[%clk 0:02:41]} 13. Bxf6 {[%clk 0:02:15]}  Bxf6 {[%clk 0:02:42]} 14. e3 {[%clk 0:02:15]}  d5 {[%clk 0:02:38]} 15. Rc1 {[%clk 0:02:14]}  Qb7 {[%clk 0:02:28]} 16. c3 {[%clk 0:01:53]}  bxc3 {[%clk 0:02:17]} 17. Rxc3 {[%clk 0:01:43]}  e5 {[%clk 0:02:17]} 18. Nf3 {[%clk 0:01:36]}  Na6 {[%clk 0:01:59]} 19. Qe2 {[%clk 0:01:18]}  d4 {[%clk 0:01:38]} 20. exd4 {[%clk 0:00:47]}  exd4 {[%clk 0:01:39]} 21. Nc5 {[%clk 0:00:46]}  Qd5 {[%clk 0:01:20]} 22. Nxa6 {[%clk 0:00:36]}  dxc3 {[%clk 0:01:20]} 23. Nc7 {[%clk 0:00:35]}  Qb7 {[%clk 0:01:14]} 24. Nxa8 {[%clk 0:00:34]}  cxb2 {[%clk 0:01:14]} 25. Rb1 {[%clk 0:00:26]}  Rxa8 {[%clk 0:01:14]} 26. Qb5 {[%clk 0:00:18]}  Qxb5 {[%clk 0:01:12]} 27. axb5 {[%clk 0:00:19]}  Rb8 {[%clk 0:01:13]} 28. Nd2 {[%clk 0:00:17]}  Rxb5 {[%clk 0:01:13]} 29. Nc4 {[%clk 0:00:17]}  a5 {[%clk 0:01:04]} 30. Kf1 {[%clk 0:00:18]}  Rc5 {[%clk 0:00:48]} 31. Nd2 {[%clk 0:00:05]}  a4 {[%clk 0:00:45]} 0-1


[Site "https://www.chess.com"]

[Event "Titled Tuesday Blitz June 27 Early 2023"]
[White "Ajay Karthikeyan"]
[Black "Hoffmann, Asa"]
[WhiteFideId "35011685"]
[BlackFideId "2001470"]
[WhiteElo "2713"]
[BlackElo "2395"]
[Result "0-1"]
[Round "2"]
[TimeControl "180+2"]
[Date "2023.06.27"]
[WhiteClock "0:00:34"]
[BlackClock "0:00:39"]
[Board "100"]

1. Nf3 {[%clk 0:03:00]}  d6 {[%clk 0:02:55]} 2. c4 {[%clk 0:03:00]}  e5 {[%clk 0:02:54]} 3. Nc3 {[%clk 0:03:01]}  Nf6 {[%clk 0:02:54]} 4. d3 {[%clk 0:03:01]}  Be7 {[%clk 0:02:54]} 5. g3 {[%clk 0:03:00]}  c6 {[%clk 0:02:53]} 6. Bg2 {[%clk 0:03:00]}  O-O {[%clk 0:02:51]} 7. O-O {[%clk 0:03:00]}  h6 {[%clk 0:02:50]} 8. Rb1 {[%clk 0:02:59]}  Be6 {[%clk 0:02:50]} 9. b4 {[%clk 0:02:59]}  Qd7 {[%clk 0:02:50]} 10. Re1 {[%clk 0:02:56]}  Na6 {[%clk 0:02:45]} 11. Ba3 {[%clk 0:02:54]}  b5 {[%clk 0:02:39]} 12. Nd2 {[%clk 0:02:40]}  Rab8 {[%clk 0:02:34]} 13. Qc2 {[%clk 0:02:24]}  d5 {[%clk 0:02:33]} 14. c5 {[%clk 0:02:18]}  Nc7 {[%clk 0:02:30]} 15. Nf3 {[%clk 0:02:13]}  Bh3 {[%clk 0:02:13]} 16. Nxe5 {[%clk 0:02:11]}  Qe6 {[%clk 0:02:11]} 17. d4 {[%clk 0:02:07]}  Bxg2 {[%clk 0:02:08]} 18. Kxg2 {[%clk 0:02:08]}  Ra8 {[%clk 0:01:56]} 19. f4 {[%clk 0:02:01]}  Nfe8 {[%clk 0:01:46]} 20. f5 {[%clk 0:02:00]}  Qc8 {[%clk 0:01:38]} 21. Nxc6 {[%clk 0:01:59]}  Bf6 {[%clk 0:01:38]} 22. e4 {[%clk 0:01:53]}  dxe4 {[%clk 0:01:33]} 23. Nxe4 {[%clk 0:01:46]}  Nd5 {[%clk 0:01:33]} 24. Nxf6+ {[%clk 0:01:45]}  Nexf6 {[%clk 0:01:32]} 25. Ne5 {[%clk 0:01:42]}  a5 {[%clk 0:01:22]} 26. bxa5 {[%clk 0:01:40]}  Rxa5 {[%clk 0:01:21]} 27. Bb4 {[%clk 0:01:37]}  Ra4 {[%clk 0:01:20]} 28. a3 {[%clk 0:01:34]}  Qa8 {[%clk 0:01:16]} 29. c6 {[%clk 0:01:24]}  Rc8 {[%clk 0:01:12]} 30. Kh3 {[%clk 0:01:08]}  Nh7 {[%clk 0:01:06]} 31. Qb3 {[%clk 0:00:54]}  Ng5+ {[%clk 0:01:01]} 32. Kg2 {[%clk 0:00:55]}  Rxc6 {[%clk 0:00:51]} 33. Nxc6 {[%clk 0:00:45]}  Qxc6 {[%clk 0:00:50]} 34. Rbc1 {[%clk 0:00:44]}  Ne3+ {[%clk 0:00:40]} 35. Kf2 {[%clk 0:00:35]}  Qf3+ {[%clk 0:00:39]} 36. Kg1 {[%clk 0:00:34]}  Qg2# {[%clk 0:00:39]} 0-1


[Site "https://www.chess.com"]

[Event "Titled Tuesday Blitz June 27 Early 2023"]
[White "Dishman, Stephen"]
[Black "Volkov, Maksim"]
[WhiteFideId "403024"]
[BlackFideId "54123070"]
[WhiteElo "2351"]
[BlackElo "2712"]
[Result "1-0"]
[Round "2"]
[TimeControl "180+2"]
[Date "2023.06.27"]
[WhiteClock "0:01:51"]
[BlackClock "0:01:17"]
[Board "101"]

1. c4 {[%clk 0:03:00]}  e6 {[%clk 0:02:59]} 2. g3 {[%clk 0:03:00]}  d5 {[%clk 0:02:59]} 3. Nf3 {[%clk 0:03:00]}  Nf6 {[%clk 0:03:00]} 4. d4 {[%clk 0:03:00]}  dxc4 {[%clk 0:02:59]} 5. Bg2 {[%clk 0:03:00]}  c6 {[%clk 0:03:00]} 6. O-O {[%clk 0:02:56]}  b5 {[%clk 0:02:59]} 7. Ne5 {[%clk 0:02:55]}  Bb7 {[%clk 0:02:59]} 8. b3 {[%clk 0:02:55]}  cxb3 {[%clk 0:02:59]} 9. Qxb3 {[%clk 0:02:55]}  Qxd4 {[%clk 0:02:52]} 10. Bb2 {[%clk 0:02:55]}  Qb6 {[%clk 0:02:49]} 11. a4 {[%clk 0:02:40]}  bxa4 {[%clk 0:02:47]} 12. Qc2 {[%clk 0:02:23]}  Nbd7 {[%clk 0:02:43]} 13. Nd2 {[%clk 0:02:14]}  Nxe5 {[%clk 0:01:58]} 14. Bxe5 {[%clk 0:02:12]}  Qc5 {[%clk 0:01:55]} 15. Qb2 {[%clk 0:01:56]}  Qb4 {[%clk 0:01:52]} 16. Bxf6 {[%clk 0:01:53]}  gxf6 {[%clk 0:01:51]} 17. Qxf6 {[%clk 0:01:52]}  Rg8 {[%clk 0:01:46]} 18. Rab1 {[%clk 0:01:52]}  Qxd2 {[%clk 0:01:17]} 19. Rxb7 {[%clk 0:01:51]} 1-0


[Site "https://www.chess.com"]